{"text_format":"3","workbook":"xlsx","n_sheets":5,"sheets":["Nadzorna plošča","Izdatki in dohodki","Poročilo o proračunu","Seznami podatkov","Vrtilna tabela kategorij"],"not_rendered":{"charts":3,"defined_names":18,"pivot_tables":2},"read":"whole","date_system":"1900"}

{"sheet":"Nadzorna plošča","index":0,"n_rows":21,"n_cols":16,"rows_kept":21,"merged":[[5,2,5,3]]}
[]
[null,null,"Polmesečni gospodinjski proračun",{"$nulls":12},"NADZORNA PLOŠČA"]
[]
[]
[]
[null,null,{"$f":"CHOOSE(ŠtevilkaMeseca,\"Januar\",\"Februar\",\"Marec\",\"April\",\"Maj\",\"Junij\",\"Julij\",\"Avgust\",\"September\",\"Oktober\",\"November\",\"December\")","v":"Avgust"},null,8,{"$nulls":5},2012]
[]
[]
[null,null,"Mesečne skupne vrednosti","Monthly Totals",{"$nulls":5},"Letne skupne vrednosti",null,"Annual Totals"]
[null,null,"PRIHODKI","Izdatki",{"$f":"SUMIF(Izdatki[DATUM],\"<=\"&DatumKonecMeseca,Izdatki[ZNESEK])-SUMIF(Izdatki[DATUM],\"<\"&DatumZačetekMeseca,Izdatki[ZNESEK])","v":{"v":0,"d":"0 €"}},{"$nulls":4},"PRIHODKI",null,"Izdatki",{"$f":"SUM(IF(YEAR(Izdatki[DATUM])=K6,Izdatki[ZNESEK]))","v":{"v":7500,"d":"7,500 €"}}]
[null,null,"IZDATKI","prihodek",{"$f":"SUMIF(prihodek[DATUM],\"<=\"&DatumKonecMeseca,prihodek[ZNESEK])-SUMIF(prihodek[DATUM],\"<\"&DatumZačetekMeseca,prihodek[ZNESEK])","v":{"v":0,"d":"0 €"}},{"$nulls":4},"IZDATKI",null,"prihodek",{"$f":"SUM(IF(YEAR(prihodek[DATUM])=K6,prihodek[ZNESEK]))","v":{"v":12700,"d":"12,700 €"}}]
[]
[]
[]
[]
[]
[{"$nulls":3},"JANUAR","FEBRUAR","MAREC","APRIL","MAJ","JUNIJ","JULIJ","AVGUST","SEPTEMBER","OKTOBER","NOVEMBER","DECEMBER"]
[null,null,"Dohodek 1–15",{"$f":"SUMIFS(prihodek[ZNESEK],prihodek[OPIS],\"<=\"&DatSredina,prihodek[OPIS],\">=\"&DatZačetek)","v":{"v":0,"d":"0.00 €"}},{"$f":"SUMIFS(prihodek[ZNESEK],prihodek[OPIS],\"<=\"&DatSredina,prihodek[OPIS],\">=\"&DatZačetek)","v":{"v":0,"d":"0.00 €"}},{"$f":"SUMIFS(prihodek[ZNESEK],prihodek[OPIS],\"<=\"&DatSredina,prihodek[OPIS],\">=\"&DatZačetek)","v":{"v":0,"d":"0.00 €"}},{"$f":"SUMIFS(prihodek[ZNESEK],prihodek[OPIS],\"<=\"&DatSredina,prihodek[OPIS],\">=\"&DatZačetek)","v":{"v":0,"d":"0.00 €"}},{"$f":"SUMIFS(prihodek[ZNESEK],prihodek[OPIS],\"<=\"&DatSredina,prihodek[OPIS],\">=\"&DatZačetek)","v":{"v":0,"d":"0.00 €"}},{"$f":"SUMIFS(prihodek[ZNESEK],prihodek[OPIS],\"<=\"&DatSredina,prihodek[OPIS],\">=\"&DatZačetek)","v":{"v":0,"d":"0.00 €"}},{"$f":"SUMIFS(prihodek[ZNESEK],prihodek[OPIS],\"<=\"&DatSredina,prihodek[OPIS],\">=\"&DatZačetek)","v":{"v":0,"d":"0.00 €"}},{"$f":"SUMIFS(prihodek[ZNESEK],prihodek[OPIS],\"<=\"&DatSredina,prihodek[OPIS],\">=\"&DatZačetek)","v":{"v":0,"d":"0.00 €"}},{"$f":"SUMIFS(prihodek[ZNESEK],prihodek[OPIS],\"<=\"&DatSredina,prihodek[OPIS],\">=\"&DatZačetek)","v":{"v":0,"d":"0.00 €"}},{"$f":"SUMIFS(prihodek[ZNESEK],prihodek[OPIS],\"<=\"&DatSredina,prihodek[OPIS],\">=\"&DatZačetek)","v":{"v":0,"d":"0.00 €"}},{"$f":"SUMIFS(prihodek[ZNESEK],prihodek[OPIS],\"<=\"&DatSredina,prihodek[OPIS],\">=\"&DatZačetek)","v":{"v":0,"d":"0.00 €"}},{"$f":"SUMIFS(prihodek[ZNESEK],prihodek[OPIS],\"<=\"&DatSredina,prihodek[OPIS],\">=\"&DatZačetek)","v":{"v":0,"d":"0.00 €"}}]
[null,null,"Dohodek 16–EOM",{"$f":"SUMIFS(prihodek[ZNESEK],prihodek[OPIS],\"<=\"&DatKonec,prihodek[OPIS],\">=\"&DatSredina+1)","v":{"v":0,"d":"0.00 €"}},{"$f":"SUMIFS(prihodek[ZNESEK],prihodek[OPIS],\"<=\"&DatKonec,prihodek[OPIS],\">=\"&DatSredina+1)","v":{"v":0,"d":"0.00 €"}},{"$f":"SUMIFS(prihodek[ZNESEK],prihodek[OPIS],\"<=\"&DatKonec,prihodek[OPIS],\">=\"&DatSredina+1)","v":{"v":0,"d":"0.00 €"}},{"$f":"SUMIFS(prihodek[ZNESEK],prihodek[OPIS],\"<=\"&DatKonec,prihodek[OPIS],\">=\"&DatSredina+1)","v":{"v":0,"d":"0.00 €"}},{"$f":"SUMIFS(prihodek[ZNESEK],prihodek[OPIS],\"<=\"&DatKonec,prihodek[OPIS],\">=\"&DatSredina+1)","v":{"v":0,"d":"0.00 €"}},{"$f":"SUMIFS(prihodek[ZNESEK],prihodek[OPIS],\"<=\"&DatKonec,prihodek[OPIS],\">=\"&DatSredina+1)","v":{"v":0,"d":"0.00 €"}},{"$f":"SUMIFS(prihodek[ZNESEK],prihodek[OPIS],\"<=\"&DatKonec,prihodek[OPIS],\">=\"&DatSredina+1)","v":{"v":0,"d":"0.00 €"}},{"$f":"SUMIFS(prihodek[ZNESEK],prihodek[OPIS],\"<=\"&DatKonec,prihodek[OPIS],\">=\"&DatSredina+1)","v":{"v":0,"d":"0.00 €"}},{"$f":"SUMIFS(prihodek[ZNESEK],prihodek[OPIS],\"<=\"&DatKonec,prihodek[OPIS],\">=\"&DatSredina+1)","v":{"v":0,"d":"0.00 €"}},{"$f":"SUMIFS(prihodek[ZNESEK],prihodek[OPIS],\"<=\"&DatKonec,prihodek[OPIS],\">=\"&DatSredina+1)","v":{"v":0,"d":"0.00 €"}},{"$f":"SUMIFS(prihodek[ZNESEK],prihodek[OPIS],\"<=\"&DatKonec,prihodek[OPIS],\">=\"&DatSredina+1)","v":{"v":0,"d":"0.00 €"}},{"$f":"SUMIFS(prihodek[ZNESEK],prihodek[OPIS],\"<=\"&DatKonec,prihodek[OPIS],\">=\"&DatSredina+1)","v":{"v":0,"d":"0.00 €"}}]
[null,null,"Izdatki 1–15",{"$f":"SUMIFS(Izdatki[ZNESEK],Izdatki[DATUM],\"<=\"&DatSredina,Izdatki[DATUM],\">=\"&DatZačetek)","v":{"v":0,"d":"0.00 €"}},{"$f":"SUMIFS(Izdatki[ZNESEK],Izdatki[DATUM],\"<=\"&DatKonec,Izdatki[DATUM],\">=\"&DatZačetek)","v":{"v":0,"d":"0.00 €"}},{"$f":"SUMIFS(Izdatki[ZNESEK],Izdatki[DATUM],\"<=\"&DatKonec,Izdatki[DATUM],\">=\"&DatZačetek)","v":{"v":0,"d":"0.00 €"}},{"$f":"SUMIFS(Izdatki[ZNESEK],Izdatki[DATUM],\"<=\"&DatKonec,Izdatki[DATUM],\">=\"&DatZačetek)","v":{"v":0,"d":"0.00 €"}},{"$f":"SUMIFS(Izdatki[ZNESEK],Izdatki[DATUM],\"<=\"&DatKonec,Izdatki[DATUM],\">=\"&DatZačetek)","v":{"v":0,"d":"0.00 €"}},{"$f":"SUMIFS(Izdatki[ZNESEK],Izdatki[DATUM],\"<=\"&DatKonec,Izdatki[DATUM],\">=\"&DatZačetek)","v":{"v":0,"d":"0.00 €"}},{"$f":"SUMIFS(Izdatki[ZNESEK],Izdatki[DATUM],\"<=\"&DatKonec,Izdatki[DATUM],\">=\"&DatZačetek)","v":{"v":0,"d":"0.00 €"}},{"$f":"SUMIFS(Izdatki[ZNESEK],Izdatki[DATUM],\"<=\"&DatKonec,Izdatki[DATUM],\">=\"&DatZačetek)","v":{"v":0,"d":"0.00 €"}},{"$f":"SUMIFS(Izdatki[ZNESEK],Izdatki[DATUM],\"<=\"&DatKonec,Izdatki[DATUM],\">=\"&DatZačetek)","v":{"v":75,"d":"75.00 €"}},{"$f":"SUMIFS(Izdatki[ZNESEK],Izdatki[DATUM],\"<=\"&DatKonec,Izdatki[DATUM],\">=\"&DatZačetek)","v":{"v":1350,"d":"1,350.00 €"}},{"$f":"SUMIFS(Izdatki[ZNESEK],Izdatki[DATUM],\"<=\"&DatKonec,Izdatki[DATUM],\">=\"&DatZačetek)","v":{"v":6025,"d":"6,025.00 €"}},{"$f":"SUMIFS(Izdatki[ZNESEK],Izdatki[DATUM],\"<=\"&DatKonec,Izdatki[DATUM],\">=\"&DatZačetek)","v":{"v":2742,"d":"2,742.00 €"}}]
[null,null,"Izdatki 16–EOM",{"$f":"SUMIFS(Izdatki[ZNESEK],Izdatki[DATUM],\"<=\"&DatKonec,Izdatki[DATUM],\">=\"&DatSredina+1)","v":{"v":0,"d":"0.00 €"}},{"$f":"SUMIFS(Izdatki[ZNESEK],Izdatki[DATUM],\"<=\"&DatKonec,Izdatki[DATUM],\">=\"&DatSredina+1)","v":{"v":0,"d":"0.00 €"}},{"$f":"SUMIFS(Izdatki[ZNESEK],Izdatki[DATUM],\"<=\"&DatKonec,Izdatki[DATUM],\">=\"&DatSredina+1)","v":{"v":0,"d":"0.00 €"}},{"$f":"SUMIFS(Izdatki[ZNESEK],Izdatki[DATUM],\"<=\"&DatKonec,Izdatki[DATUM],\">=\"&DatSredina+1)","v":{"v":0,"d":"0.00 €"}},{"$f":"SUMIFS(Izdatki[ZNESEK],Izdatki[DATUM],\"<=\"&DatKonec,Izdatki[DATUM],\">=\"&DatSredina+1)","v":{"v":0,"d":"0.00 €"}},{"$f":"SUMIFS(Izdatki[ZNESEK],Izdatki[DATUM],\"<=\"&DatKonec,Izdatki[DATUM],\">=\"&DatSredina+1)","v":{"v":0,"d":"0.00 €"}},{"$f":"SUMIFS(Izdatki[ZNESEK],Izdatki[DATUM],\"<=\"&DatKonec,Izdatki[DATUM],\">=\"&DatSredina+1)","v":{"v":0,"d":"0.00 €"}},{"$f":"SUMIFS(Izdatki[ZNESEK],Izdatki[DATUM],\"<=\"&DatKonec,Izdatki[DATUM],\">=\"&DatSredina+1)","v":{"v":0,"d":"0.00 €"}},{"$f":"SUMIFS(Izdatki[ZNESEK],Izdatki[DATUM],\"<=\"&DatKonec,Izdatki[DATUM],\">=\"&DatSredina+1)","v":{"v":75,"d":"75.00 €"}},{"$f":"SUMIFS(Izdatki[ZNESEK],Izdatki[DATUM],\"<=\"&DatKonec,Izdatki[DATUM],\">=\"&DatSredina+1)","v":{"v":200,"d":"200.00 €"}},{"$f":"SUMIFS(Izdatki[ZNESEK],Izdatki[DATUM],\"<=\"&DatKonec,Izdatki[DATUM],\">=\"&DatSredina+1)","v":{"v":875,"d":"875.00 €"}},{"$f":"SUMIFS(Izdatki[ZNESEK],Izdatki[DATUM],\"<=\"&DatKonec,Izdatki[DATUM],\">=\"&DatSredina+1)","v":{"v":0,"d":"0.00 €"}}]

{"sheet":"Izdatki in dohodki","index":1,"n_rows":40,"n_cols":10,"rows_kept":40}
[]
[null,null,"Polmesečni gospodinjski proračun",{"$nulls":6},"DOHODKI IN IZDATKI"]
[]
[]
[]
[null,null,"PRIHODKI",{"$nulls":3},"IZDATKI"]
[]
[null,null,"DATUM","OPIS","ZNESEK",null,"DATUM","KATEGORIJA","OPIS","ZNESEK"]
[null,null,"2012-11-26","Jankova plača",{"v":1300,"d":"1,300.00 €"},null,{"$f":"NOW()-7","v":"2013-01-09T14:42:51.980"},"Gospodinjstvo","Hipoteka",{"v":1000,"d":"1,000.00 €"}]
[null,null,"2012-11-26","Tinina plača",{"v":1300,"d":"1,300.00 €"},null,{"$f":"NOW()-7","v":"2013-01-09T14:42:51.980"},"Gospodinjstvo","Elektrika",{"v":100,"d":"100.00 €"}]
[null,null,"2012-11-12","Jankova plača",{"v":1500,"d":"1,500.00 €"},null,"2013-01-09T14:42:51.980","Gospodinjstvo","Voda/kanalizacija",{"v":50,"d":"50.00 €"}]
[null,null,"2012-11-12","Tinina plača",{"v":1600,"d":"1,600.00 €"},null,"2013-01-09T14:42:51.980","Gospodinjstvo","Smeti",{"v":25,"d":"25.00 €"}]
[null,null,"2012-10-29","Jankova plača",{"v":1300,"d":"1,300.00 €"},null,"2013-01-09T14:42:51.980","Gospodinjstvo","Mobilni telefon",{"v":100,"d":"100.00 €"}]
[null,null,"2012-10-29","Tinina plača",{"v":1300,"d":"1,300.00 €"},null,"2013-01-09T14:42:51.980","Gospodinjstvo","Stacionarni telefon",{"v":30,"d":"30.00 €"}]
[null,null,"2012-10-15","Jankova plača",{"v":1500,"d":"1,500.00 €"},null,"2013-01-09T14:42:51.980","Gospodinjstvo","Internet",{"v":50,"d":"50.00 €"}]
[null,null,"2012-10-15","Tinina plača",{"v":1600,"d":"1,600.00 €"},null,"2013-01-09T14:42:51.980","Gospodinjstvo","Televizija",{"v":50,"d":"50.00 €"}]
[null,null,"2012-10-01","Jankova plača",{"v":1300,"d":"1,300.00 €"},null,"2013-01-09T14:42:51.980","Gospodinjstvo","Vzdrževanje/popravila",{"v":25,"d":"25.00 €"}]
[{"$nulls":6},{"$f":"NOW()-8","v":"2013-01-08T14:42:51.980"},"Gospodinjstvo","Kreditna kartica 1 ",{"v":100,"d":"100.00 €"}]
[{"$nulls":6},{"$f":"NOW()-9","v":"2013-01-07T14:42:51.980"},"Zabava","Filmi",{"v":37,"d":"37.00 €"}]
[{"$nulls":6},{"$f":"NOW()-10","v":"2013-01-06T14:42:51.980"},"Hrana","Živila",{"v":350,"d":"350.00 €"}]
[{"$nulls":6},{"$f":"NOW()-11","v":"2013-01-05T14:42:51.980"},"Hrana","Restavracije",{"v":75,"d":"75.00 €"}]
[{"$nulls":6},{"$f":"NOW()-12","v":"2013-01-04T14:42:51.980"},"Otroci","Denar za malico",{"v":150,"d":"150.00 €"}]
[{"$nulls":6},{"$f":"NOW()-13","v":"2013-01-03T14:42:51.980"},"Naložbeni račun","Prihranki",{"v":250,"d":"250.00 €"}]
[{"$nulls":6},{"$f":"NOW()-14","v":"2013-01-02T14:42:51.980"},"Naložbeni račun","Naložbeni račun",{"v":250,"d":"250.00 €"}]
[{"$nulls":6},{"$f":"NOW()-15","v":"2013-01-01T14:42:51.980"},"Osebno","Zdravstveni/fitnes klub",{"v":100,"d":"100.00 €"}]
[{"$nulls":6},{"$f":"NOW()-16","v":"2012-12-31T14:42:51.980"},"Domači ljubljenčki","Hrana",{"v":50,"d":"50.00 €"}]
[{"$nulls":6},{"$f":"NOW()-20","v":"2012-12-27T14:42:51.980"},"Domači ljubljenčki","Nega",{"v":50,"d":"50.00 €"}]
[{"$nulls":6},{"$f":"NOW()-20","v":"2012-12-27T14:42:51.980"},"Domači ljubljenčki","Drugo",{"v":50,"d":"50.00 €"}]
[{"$nulls":6},{"$f":"NOW()-25","v":"2012-12-22T14:42:51.980"},"Prevoz","Plačilo za avto 1 ",{"v":300,"d":"300.00 €"}]
[{"$nulls":6},{"$f":"NOW()-25","v":"2012-12-22T14:42:51.980"},"Prevoz","Plačilo za avto 2 ",{"v":350,"d":"350.00 €"}]
[{"$nulls":6},{"$f":"NOW()-25","v":"2012-12-22T14:42:51.980"},"Prevoz","Avtomobilsko zavarovanje",{"v":50,"d":"50.00 €"}]
[{"$nulls":6},{"$f":"NOW()-30","v":"2012-12-17T14:42:51.980"},"Prevoz","Gorivo",{"v":50,"d":"50.00 €"}]
[{"$nulls":6},{"$f":"NOW()-31","v":"2012-12-16T14:42:51.980"},"Prevoz","Gorivo",{"v":25,"d":"25.00 €"}]
[{"$nulls":6},{"$f":"NOW()-42","v":"2012-12-05T14:42:51.980"},"Prevoz","Vzdrževanje/popravila",{"v":150,"d":"150.00 €"}]
[{"$nulls":6},{"$f":"NOW()-45","v":"2012-12-02T14:42:51.980"},"Gospodinjstvo","Hipoteka",{"v":5000,"d":"5,000.00 €"}]
[{"$nulls":6},{"$f":"NOW()-50","v":"2012-11-27T14:42:51.980"},"Gospodinjstvo","Potrebščine",{"v":200,"d":"200.00 €"}]
[{"$nulls":6},{"$f":"NOW()-65","v":"2012-11-12T14:42:51.980"},"Gospodinjstvo","Stacionarni telefon",{"v":100,"d":"100.00 €"}]
[{"$nulls":6},{"$f":"NOW()-70","v":"2012-11-07T14:42:51.980"},"Gospodinjstvo","Smeti",{"v":50,"d":"50.00 €"}]
[{"$nulls":6},{"$f":"NOW()-75","v":"2012-11-02T14:42:51.980"},"Gospodinjstvo","Hipoteka",{"v":1000,"d":"1,000.00 €"}]
[{"$nulls":6},{"$f":"NOW()-78","v":"2012-10-30T14:42:51.980"},"Zabava","Filmi",{"v":75,"d":"75.00 €"}]

{"sheet":"Poročilo o proračunu","index":2,"n_rows":41,"n_cols":8,"rows_kept":41}
[]
[null,null,"Polmesečni gospodinjski proračun",{"$nulls":4},"POROČILO O PRORAČUNU"]
{"$rows_empty":10}
[null,null,"IZDATKI",null,null,"SKUPNE VREDNOSTI KATEGORIJ"]
[]
[null,null,"OPIS","SKUPAJ"]
[null,null,"Avtomobilsko zavarovanje",{"v":50,"d":"50 €"}]
[null,null,"Denar za malico",{"v":150,"d":"150 €"}]
[null,null,"Drugo",{"v":50,"d":"50 €"}]
[null,null,"Elektrika",{"v":100,"d":"100 €"}]
[null,null,"Filmi",{"v":112,"d":"112 €"}]
[null,null,"Gorivo",{"v":75,"d":"75 €"}]
[null,null,"Hipoteka",{"v":7000,"d":"7,000 €"}]
[null,null,"Hrana",{"v":50,"d":"50 €"}]
[null,null,"Internet",{"v":50,"d":"50 €"}]
[null,null,"Kreditna kartica 1 ",{"v":100,"d":"100 €"}]
[null,null,"Mobilni telefon",{"v":100,"d":"100 €"}]
[null,null,"Naložbeni račun",{"v":250,"d":"250 €"}]
[null,null,"Nega",{"v":50,"d":"50 €"}]
[null,null,"Plačilo za avto 1 ",{"v":300,"d":"300 €"}]
[null,null,"Plačilo za avto 2 ",{"v":350,"d":"350 €"}]
[null,null,"Potrebščine",{"v":200,"d":"200 €"}]
[null,null,"Prihranki",{"v":250,"d":"250 €"}]
[null,null,"Restavracije",{"v":75,"d":"75 €"}]
[null,null,"Smeti",{"v":75,"d":"75 €"}]
[null,null,"Stacionarni telefon",{"v":130,"d":"130 €"}]
[null,null,"Televizija",{"v":50,"d":"50 €"}]
[null,null,"Voda/kanalizacija",{"v":50,"d":"50 €"}]
[null,null,"Vzdrževanje/popravila",{"v":175,"d":"175 €"}]
[null,null,"Zdravstveni/fitnes klub",{"v":100,"d":"100 €"}]
[null,null,"Živila",{"v":350,"d":"350 €"}]
[null,null,"SKUPAJ",{"v":10242,"d":"10,242 €"}]

{"sheet":"Seznami podatkov","index":3,"n_rows":20,"n_cols":14,"rows_kept":20}
[]
[null,null,"Polmesečni gospodinjski proračun",{"$nulls":10},"SEZNAMI PODATKOV"]
[]
[]
[null,null,"NAMESTITEV         Spodnji podatki kategorij izpolnijo spustne sezname v tabeli izdatkov na listu »Izdatki in dohodki«. Prilagodite imena kategorij ali opisov pod vsako kategorijo, če želite posodobiti sezname."]
[]
[null,null,"Gospodinjstvo","Zabava","Hrana","Darila/donacije","Otroci","Naložbeni račun","Medicina","Drugo","Osebno","Domači ljubljenčki","Davki/pravo","Prevoz"]
[null,null,"Hipoteka","Filmi","Živila","Dobrodelni prispevek 1","Oblačila","Individualni pokojninski sklad","Zdravnik/ambulanta","Drugo","Oblačila","Hrana","Zvezno","Plačilo za avto 1 "]
[null,null,"Elektrika","Video/Filmi","Restavracije","Dobrodelni prispevek 2","Igrače/igre","Prihranki","Zavarovanje","Pristojbine organizacije","Lasje/nohti","Potrebščine","Država","Plačilo za avto 2 "]
[null,null,"Voda/kanalizacija","Glasba",null,"Dobrodelni prispevek 3","Denar za malico","Preverjanje",null,null,"Kemično čiščenje","Medicina","Lokalno","Avtomobilsko zavarovanje"]
[null,null,"Smeti","Koncerti/Gledališče",null,"Darilo","Pristojbine/plačila","Upokojitev",null,null,"Zdravstveni/fitnes klub","Nega","Drugo","Registracija"]
[null,null,"Mobilni telefon","Športni dogodki",null,null,"Šolske potrebščine","Naložbeni račun",null,null,"Nakupovanje","Drugo","Odvetnik","Gorivo"]
[null,null,"Stacionarni telefon","Drugo",null,null,"Drugo","Fakulteta",null,null,"Drugo",null,"Preživnina za otroka","Vzdrževanje/popravila"]
[null,null,"Internet",{"$nulls":3},"Perilo","Posojila",{"$nulls":4},"Preživnina","Javni prevoz"]
[null,null,"Televizija",{"$nulls":4},"Študentska posojila",{"$nulls":4},"Drugo"]
[null,null,"Vzdrževanje/popravila"]
[null,null,"Potrebščine"]
[null,null,"Kabelska televizija/internet/telefon"]
[null,null,"Kreditna kartica 1 "]
[null,null,"Kreditna kartica 2 "]

{"sheet":"Vrtilna tabela kategorij","index":4,"n_rows":16,"n_cols":14,"rows_kept":16,"hidden":true}
[]
[null,null,"Polmesečni gospodinjski proračun",{"$nulls":10},"VRTILNA TOČKA KATEGORIJE"]
[]
[]
[null,"Ta vrtilna tabela je vir podatkov za vrtilni grafikon skupnih vrednosti kategorij na poročilu o proračunu. "]
[]
[null,null,"Menovky riadkov","Vsota od ZNESEK"]
[null,null,"Domači ljubljenčki",{"v":150,"d":"150 €"}]
[null,null,"Gospodinjstvo",{"v":7880,"d":"7,880 €"}]
[null,null,"Hrana",{"v":425,"d":"425 €"}]
[null,null,"Naložbeni račun",{"v":500,"d":"500 €"}]
[null,null,"Osebno",{"v":100,"d":"100 €"}]
[null,null,"Otroci",{"v":150,"d":"150 €"}]
[null,null,"Prevoz",{"v":925,"d":"925 €"}]
[null,null,"Zabava",{"v":112,"d":"112 €"}]
[null,null,"Celkový súčet",{"v":10242,"d":"10,242 €"}]